[Event "IX Famalicao Open 2022"]
[Site "Vila Nova de Famalicao"]
[Date "2022.07.26"]
[Round "3.10"]
[White "Campora, Daniel H."]
[Black "Goncalves, Lucas Jordao"]
[Result "1-0"]
[ECO "C77"]
[WhiteElo "2397"]
[BlackElo "1813"]
[Annotator "TA"]
[PlyCount "63"]
[EventDate "2022.07.25"]
[EventType "tourn"]
[EventCountry "POR"]
[SourceTitle "playchess.com"]
[Source "ChessBase"]
[SourceQuality "1"]
[TimeControl "5400+30"]

{[%evp 22,63,10,0,24,8,20,8,18,19,32,32,28,16,30,25,22,36,33,16,16,18,39,6,129,57,68,48,50,59,114,81,74,81,81,77,127,127,637,631,623,623,1096,1036]} 1. e4 {[%emt 0:00:02]} e5 {[%emt 0:00:09]} 2. Nf3 {[%emt 0:00:07]} Nc6 {[%emt 0:00:06]} 3. Bb5 {[%emt 0:00:14]} a6 {[%emt 0:00:11]} 4. Ba4 {[%emt 0:00:06]} Nf6 {[%emt 0:00:11]} 5. d3 {[%emt 0:00:21]} b5 {[%emt 0:01:06]} 6. Bb3 {[%emt 0:00:09]} d6 {[%emt 0:00:58]} 7. c3 {[%emt 0:00:19]} Na5 {[%emt 0:06:46]} 8. Bc2 {[%emt 0:00:21]} c5 {[%emt 0:00:29]} 9. O-O {[%emt 0:00:09]} Be7 {[%emt 0:01:56]} 10. Re1 {[%emt 0:00:31]} Nc6 {[%emt 0:01:54]} 11. Nbd2 {[%emt 0:00:11][%cal Bb1d2,Bd2f1,Bf1e3][%mdl 32]} O-O {[%emt 0:00:27]} 12. Nf1 {[%emt 0:00:39]} Bd7 {[%emt 0:10:17] 12...h6 is setting a new trend. C90: Closed Ruy Lopez with 7...d6: Early deviations.} 13. h3 {[%emt 0:02:33]} Qc7 {[%emt 0:10:13]} 14. Ne3 {[%emt 0:00:58]} Rac8 {[%emt 0:02:51] [#] The position is equal.} 15. a4 $146 {[%emt 0:02:05]} ({Predecessor:} 15. Qe2 Rfe8 16. Nd5 Nxd5 17. exd5 Na7 18. c4 Bf8 19. Ng5 h6 20. Ne4 Kh8 21. Qh5 {1-0 (30) Dorado Meijide,A (1743)-Sousa,G (1533) Pontevedra 2018}) 15... Nd4 {[%emt 0:16:47]} 16. cxd4 {[%emt 0:06:59]} cxd4 {[%emt 0:00:14] [#]} 17. Bb3 $1 {[%emt 0:00:08] And now Nf5 would win.} dxe3 {[%emt 0:00:08]} 18. Bxe3 {[%emt 0:00:04]} bxa4 {[%emt 0:01:33]} 19. Bxa4 {[%emt 0:00:09]} Qb7 {[%emt 0:00:23]} 20. Bxd7 {[%emt 0:01:23]} Nxd7 {[%emt 0:04:41]} 21. Qa4 {[%emt 0:00:30]} Rc6 {[%emt 0:09:31]} 22. Nd2 {[%emt 0:07:45]} f5 {[%emt 0:11:59]} (22... d5 $11 {remains equal.} 23. exd5 Rd6) 23. Nc4 {[%emt 0:05:15]} (23. Qa2+ $16 Kh8 24. exf5) 23... Bd8 {[%emt 0:01:19]} 24. Qa2 {[%emt 0:11:08] White is more active.} Kh8 {[%emt 0:01:09]} 25. exf5 {[%emt 0:01:25]} Rxf5 {[%emt 0:02:33]} ({Black should try} 25... d5 $14 26. Na5 Bxa5 27. Qxa5 d4) 26. Na5 {[%emt 0:03:37]} Bxa5 {[%emt 0:00:53]} 27. Qxa5 {[%emt 0:00:04]} h6 {[%emt 0:01:24]} 28. Rec1 $36 {[%emt 0:06:04][%mdl 2048] Prevents Nc5. Threatens to win with Rxc6. Black is under strong pressure.} Rxc1+ {[%emt 0:05:02]} ({Better is} 28... Nc5) 29. Rxc1 $16 {[%emt 0:01:31] [#] aiming for Rc7.} Nc5 $2 {[%emt 0:05:31][%mdl 8192]} (29... Rf7 $16 30. Rc7 Qb5 31. Qxb5 axb5) 30. Qd8+ $18 {[%emt 0:02:13] White is clearly winning.} Kh7 {[%emt 0:00:28]} 31. Qxd6 {[%emt 0:00:06]} Nb3 {[%emt 0:02:11]} 32. Rc7 {[%emt 0:00:15] Weighted Error Value: White=0.15 (very precise) /Black=0.70} ({Not} 32. Rc6 Rf6 33. Rc7 Qxg2+ 34. Kxg2 Rxd6 $14) 1-0

[Event "IX Famalicao Open 2022"]
[Site "Vila Nova de Famalicao"]
[Date "2022.07.26"]
[Round "3.11"]
[White "Ozbek, Umut"]
[Black "Dias, Paulo"]
[Result "0-1"]
[ECO "C44"]
[WhiteElo "1205"]
[BlackElo "2348"]
[Annotator "TA"]
[PlyCount "32"]
[EventDate "2022.07.25"]
[EventType "tourn"]
[EventCountry "POR"]
[SourceTitle "playchess.com"]
[Source "ChessBase"]
[SourceQuality "1"]
[TimeControl "5400+30"]

{[%evp 16,32,-37,-36,-44,-102,-94,-349,-320,-318,-268,-275,-275,-610,-606,-1088,-1089,-29993,-29994]} 1. e4 e5 2. Nf3 Nc6 3. d4 exd4 4. Nxd4 Nf6 5. Nxc6 bxc6 6. Nc3 Bb4 7. Bd3 d5 8. e5 Ng4 9. O-O O-O {C47: Scotch Four Knights and Four Knights with 4 g3.} 10. Bd2 ({Better is} 10. Bf4 $15) 10... Re8 $17 {[%cal Bf8e8,Be8e6,Be6h6][%mdl 32] [#]} 11. Re1 $146 {[%mdl 8192]} (11. Bf4 $17 {was necessary.}) ({Predecessor:} 11. Bf4 Rb8 12. a3 Bc5 13. b4 Bxf2+ 14. Rxf2 Nxf2 15. Kxf2 Qh4+ 16. g3 Qxh2+ 17. Kf3 {0-1 (44) Wiehl,H-Gnuechtel,A GER email 2013}) 11... Qh4 {Black has a decisive advantage.} ({Inferior is} 11... Rxe5 12. h3 Rxe1+ 13. Qxe1 $11) (11... Nxe5 12. Bxh7+ Kxh7 13. Qh5+ Kg8 14. Rxe5 $15) 12. h3 Qxf2+ ({But not} 12... Nxf2 $2 13. Qf3 Nxd3 14. cxd3 $19) 13. Kh1 Bc5 {[%cal Of2g3] [#] ...Qg3! is the strong threat. Really sharp!} ({Not} 13... Nxe5 14. Qh5 g6 15. Rxe5 gxh5 16. Rxe8+ Bf8 17. Bh6 $17) 14. Qf3 {Inhibits Qg3.} (14. Rf1 Qg3 15. Bf4 Nf2+ 16. Rxf2 Qxf2 17. Ne2) 14... Qxd2 $19 15. hxg4 Re6 {( -> ...Rh6+)} 16. g5 {[#] Against Rh6+} Rh6+ $3 {[%mdl 512] White got outplayed after the opening.  Weighted Error Value: White=2.13/Black=0.08 (flawless)} 0-1

[Event "IX Famalicao Open 2022"]
[Site "Vila Nova de Famalicao"]
[Date "2022.07.26"]
[Round "3.12"]
[White "Borges, Guilherme Deola"]
[Black "Marques, Joao Goncalo B A"]
[Result "1-0"]
[ECO "D37"]
[WhiteElo "2185"]
[BlackElo "1474"]
[Annotator "TA"]
[PlyCount "27"]
[EventDate "2022.07.25"]
[EventType "tourn"]
[EventCountry "POR"]
[SourceTitle "playchess.com"]
[Source "ChessBase"]
[SourceQuality "1"]
[TimeControl "5400+30"]

{[%evp 11,27,21,33,39,45,45,81,68,193,189,347,319,515,517,766,601,1158,677]} 1. d4 {[%emt 0:00:03]} d5 {[%emt 0:00:11]} 2. c4 {[%emt 0:00:13]} e6 {[%emt 0:00:07]} 3. Nf3 {[%emt 0:00:15]} Nf6 {[%emt 0:00:09]} 4. Nc3 {[%emt 0:00:39]} Be7 {[%emt 0:00:08]} 5. Bf4 {[%emt 0:00:50]} O-O {[%emt 0:02:36]} 6. e3 {[%emt 0:00:15]} Nh5 {[%emt 0:07:42]} 7. Be5 {[%emt 0:03:12] D37: Queen's Gambit Declined: 5 Bf4.} f6 {[%emt 0:02:04]} 8. Bg3 {[%emt 0:00:19]} Nxg3 {[%emt 0:00:34]} 9. hxg3 {[%emt 0:00:03] aiming for cxd5. White is better.} b6 {[%emt 0:04:07]} ({Black should try} 9... c6 $14) 10. Qc2 $18 {[%emt 0:02:52]} h6 {[%emt 0:05:40] [#]} (10... g6 {keeps fighting.} 11. cxd5 Bb4) 11. cxd5 $146 {[%emt 0:00:22]} ({Less strong is} 11. Qg6 Qe8 12. Qxe8 Rxe8 $16) ({Predecessor:} 11. Rxh6 gxh6 12. Qg6+ Kh8 13. Qxh6+ Kg8 14. Qg6+ Kh8 15. Bd3 f5 16. O-O-O {1-0 (16) Schelberg,M (1816)-Bellisario,C (1352) ICCF email 2019}) 11... exd5 $2 {[%emt 0:00:09] [#]} (11... f5 12. Bc4 Ba6) 12. Nxd5 $1 {[%emt 0:00:13][%mdl 512] White is clearly winning.} Bd6 {[%emt 0:05:55]} (12... c6 13. Nf4) 13. Bc4 {[%emt 0:01:08] Intending Nxf6+ and mate.} Be6 {[%emt 0:11:20] [#]} 14. Nxc7 $1 {[%emt 0:01:46][%mdl 512] Black got outplayed after the opening.  Weighted Error Value: White=0.34/Black=0.95} 1-0

[Event "IX Famalicao Open 2022"]
[Site "Vila Nova de Famalicao"]
[Date "2022.07.26"]
[Round "4.1"]
[White "Umetsubo, Cesar Hidemitsu"]
[Black "Aditya Mittal"]
[Result "1/2-1/2"]
[ECO "B92"]
[WhiteElo "2405"]
[BlackElo "2480"]
[Annotator "TA"]
[PlyCount "73"]
[EventDate "2022.07.25"]
[EventType "tourn"]
[EventCountry "POR"]
[SourceTitle "playchess.com"]
[Source "ChessBase"]
[SourceQuality "1"]
[TimeControl "5400+30"]

{[%evp 20,73,-7,0,4,11,11,19,29,-38,-20,-21,-17,-19,-18,-11,-15,-13,-11,-13,13,11,16,12,11,4,4,6,30,30,30,30,30,30,30,30,30,30,30,30,30,30,38,39,42,34,71,71,71,71,71,57,64,57,57,70]} 1. e4 c5 2. Nf3 d6 3. d4 cxd4 4. Nxd4 Nf6 5. Nc3 a6 6. Be2 e5 7. Nb3 Be7 8. O-O O-O 9. Be3 Be6 10. a4 Nc6 11. Qd2 d5 {has lost popularity (11...Rc8). B92: Sicilian Najdorf: 6 Be2.} 12. exd5 Nxd5 13. Nxd5 Bxd5 {The position is equal.} 14. c4 ({Better is} 14. Rfd1 $11 Be4 15. Nc5 Qxd2 16. Rxd2 Bxc5 17. Bxc5) 14... Be6 {[#]} 15. Rfd1 $146 ({Predecessor:} 15. Qxd8 Rfxd8 16. Bb6 Rd7 17. Rad1 Kf8 18. Nc5 Bxc5 19. Bxc5+ Ke8 20. Rxd7 Bxd7 21. f4 {1-0 (38) Lausch,S-Araujo,M ICCF corr 1994}) 15... Qxd2 16. Rxd2 Rfd8 17. Rad1 Rxd2 18. Rxd2 Bb4 19. Rd1 Bf5 {And now ...Bc2 would win.} 20. Nc5 Nd4 21. Bxd4 exd4 {[#]} 22. Rxd4 $1 Bxc5 {This bishop pair is nice.} (22... Re8 23. Kf1) 23. Rd5 {[%csl LRc5,LRf5]} b6 24. Rxf5 $11 {[%cal Oa4a5][%mdl 4096] Endgame KRB-KRB} Rd8 25. Rd5 {Prevents Rd2.} Rxd5 26. cxd5 {KB-KB} a5 27. Kf1 Kf8 28. Bc4 Ke7 29. Ke2 Kd6 30. f4 f6 31. Kf3 Bb4 32. b3 h6 33. Kg4 Ke7 34. Kf5 Bd6 35. h4 Kf7 36. h5 {Against g6+} Ke7 37. g3 {Weighted Error Value: White=0.08 (flawless) /Black=0.06 (flawless)} 1/2-1/2

[Event "IX Famalicao Open 2022"]
[Site "Vila Nova de Famalicao"]
[Date "2022.07.26"]
[Round "4.2"]
[White "Dias, Paulo"]
[Black "Das, Sayantan"]
[Result "0-1"]
[ECO "E66"]
[WhiteElo "2348"]
[BlackElo "2449"]
[Annotator "TA"]
[PlyCount "88"]
[EventDate "2022.07.25"]
[EventType "tourn"]
[EventCountry "POR"]
[SourceTitle "playchess.com"]
[Source "ChessBase"]
[SourceQuality "1"]
[TimeControl "5400+30"]

{[%evp 17,88,8,9,-13,-12,-57,-34,-69,-41,-60,-34,-44,0,-14,63,58,50,33,50,47,39,0,0,0,0,0,0,0,0,20,36,35,43,18,26,14,199,-10,-10,-69,-83,-81,0,0,0,0,0,0,0,0,0,0,0,0,0,-18,-18,-33,0,0,0,0,0,-38,0,-54,-54,-526,-499,-484,-456,-501,-492]} 1. d4 {[%emt 0:00:03]} Nf6 {[%emt 0:00:19]} 2. c4 {[%emt 0:00:06]} g6 {[%emt 0:00:06]} 3. Nf3 {[%emt 0:00:12]} Bg7 {[%emt 0:00:07]} 4. g3 {[%emt 0:00:03]} d6 {[%emt 0:00:13]} 5. Bg2 {[%emt 0:00:13]} O-O {[%emt 0:00:29]} 6. Nc3 {[%emt 0:00:06]} c5 {[%emt 0:00:18]} 7. O-O {[%emt 0:00:29]} Nc6 {[%emt 0:00:07]} 8. d5 {[%emt 0:00:53]} Na5 {[%emt 0:00:07]} 9. Nd2 {[%emt 0:00:26]} e6 {[%emt 0:00:15]} 10. e4 {[%emt 0:03:21] E66: King's Indian: Fianchetto: 6...c5 7 0-0 Nc6 8 d5.} exd5 {[%emt 0:05:38]} 11. exd5 {[%emt 0:03:51]} Bf5 {[%emt 0:03:44] [#]} (11... Bg4 $5 {[%cal Rg4d1]} 12. Bf3 Bf5 $15) 12. Qa4 $146 {[%emt 0:11:22] Black is slightly better.} ({Predecessor:} 12. a3 Bd3 13. Re1 Nxc4 14. Qf3 Nxd2 15. Qxd3 Nb3 16. Rb1 Nxc1 17. Rbxc1 a6 18. Bh3 {0-1 (36) Nonkovic,N (1895)-Radovanovic,N (2157) Vrnjacka Banja 2013}) 12... Bd3 {[%emt 0:09:33]} 13. Re1 {[%emt 0:12:01]} Re8 {[%emt 0:09:38]} 14. Nde4 $1 {[%emt 0:10:12]} (14. Rxe8+ Qxe8 15. Qd1 (15. Qxa5 $2 Qe1+ 16. Nf1 Ng4 $19) 15... Nxc4 16. Nxc4 Bxc4 $17) 14... Nxe4 {[%emt 0:16:04]} 15. Nxe4 {[%emt 0:00:59]} h6 {[%emt 0:03:47] Inhibits Bg5.} (15... Bxc4 $2 16. Bg5 Qb8 17. Qxa5 $18) (15... Nxc4 $11 16. Bg5 f6 17. Qxe8+ Qxe8 18. Nxf6+ Bxf6 19. Rxe8+ Rxe8 20. Bxf6 Kf7) 16. Re3 $14 {[%emt 0:14:51]} Bxe4 {[%emt 0:02:57]} (16... Bxc4 17. Bd2 $16) 17. Rxe4 {[%emt 0:00:53]} Rxe4 {[%emt 0:03:58]} 18. Bxe4 {[%emt 0:01:10]} Qe7 {[%emt 0:09:07]} 19. Bd3 {[%emt 0:03:45]} Qe1+ {[%emt 0:06:33]} 20. Kg2 {[%emt 0:00:03]} b5 $1 {[%emt 0:00:59]} 21. cxb5 {[%emt 0:06:34]} c4 $1 {[%emt 0:00:22]} (21... Bd4 22. Qc2 $14) 22. Bf1 {[%emt 0:02:00]} (22. Bxc4 $2 Qe4+ 23. f3 Qxc4 24. Qxc4 Nxc4 $19) 22... Rc8 {[%emt 0:04:25]} (22... Bd4 $2 23. Be3 $1 Qxa1 24. Bxd4 $18) 23. Qc2 {[%emt 0:08:48]} Qb4 {[%emt 0:05:29]} 24. Rb1 {[%emt 0:12:29]} Qxb5 {[%emt 0:00:44]} 25. Qd1 {[%emt 0:01:45]} Rc5 {[%emt 0:05:14]} 26. b4 {[%emt 0:05:03] Strongly threatening Be3.} Rc8 $2 {[%emt 0:07:53]} (26... Rxd5 $11 27. Qc2 {[#]} Qb7 $1) 27. a4 $2 {[%emt 0:00:53]} (27. Be3 $18 Nb7 28. Bxa7) 27... Qb7 $11 {[%emt 0:01:05]} 28. Bf4 {[%emt 0:01:16] [#]} (28. Bxh6 $11 c3 29. bxa5) 28... c3 $1 $15 {[%emt 0:01:30] And now ...c2 would win.} 29. Qf3 {[%emt 0:00:41]} ({Don't blunder} 29. bxa5 $2 c2 30. Bb5 cxd1=N $19) (29. Qd3 Nc4) 29... c2 {[%emt 0:01:50] Black is more active.} (29... Nc4 $17 {Hoping for ...g5.} 30. b5 (30. Bxc4 Rxc4 31. Re1 c2 $17) 30... Rc5) 30. Rc1 $1 $11 {[%emt 0:00:02]} Qxb4 {[%emt 0:00:07]} 31. Bd3 {[%emt 0:00:47]} Qxa4 {[%emt 0:01:37]} 32. Qe2 {[%emt 0:00:39]} Qd4 {[%emt 0:00:54]} 33. Bxc2 {[%emt 0:00:01]} Qxd5+ {[%emt 0:01:04]} 34. Be4 {[%emt 0:00:38] A strong pair of Bishops.} Qe6 {[%emt 0:00:09] aiming for ...Re8.} 35. Rxc8+ {[%emt 0:00:38]} Qxc8 {[%emt 0:00:01]} 36. Bxd6 {[%emt 0:00:24]} Nc4 $36 {[%emt 0:01:09][%mdl 2048] Black has good play.} 37. Bf4 {[%emt 0:00:27]} Qe6 {[%emt 0:00:51]} 38. Qd3 {[%emt 0:00:26]} Nb6 {[%emt 0:00:16]} 39. h4 {[%emt 0:00:36]} h5 {[%emt 0:00:10]} 40. Bf3 {[%emt 0:00:34]} Bf6 {[%emt 0:00:31]} 41. Qa6 {[%emt 0:00:37]} (41. Be3 $11) 41... Nd5 $15 {[%emt 0:01:00]} 42. Bd6 {[%emt 0:00:40][%mdl 8192]} ({White should play} 42. Qd6 $15 Nxf4+ 43. Qxf4) 42... Nb4 $1 $19 {[%emt 0:00:32] Black is clearly winning.} 43. Qxa7 {[%emt 0:00:29]} Qxd6 {[%emt 0:00:05]} 44. Qa4 {[%emt 0:00:29]} Nd3 {[%emt 0:00:18] Weighted Error Value: White=0.44/Black=0.19 (very precise)} 0-1

[Event "IX Famalicao Open 2022"]
[Site "Vila Nova de Famalicao"]
[Date "2022.07.26"]
[Round "4.3"]
[White "Abdisalimov, Abdimalik"]
[Black "Campora, Daniel H."]
[Result "1-0"]
[ECO "E80"]
[WhiteElo "2437"]
[BlackElo "2397"]
[Annotator "TA"]
[PlyCount "99"]
[EventDate "2022.07.25"]
[EventType "tourn"]
[EventCountry "POR"]
[SourceTitle "playchess.com"]
[Source "ChessBase"]
[SourceQuality "1"]
[TimeControl "5400+30"]

{[%evp 10,99,52,32,37,16,27,28,27,2,16,8,22,10,1,-8,-5,-5,15,10,17,0,17,23,16,2,4,21,36,38,101,-133,141,35,22,27,134,62,70,70,88,0,81,49,79,34,81,91,201,179,245,233,235,245,580,561,677,666,673,658,564,514,873,866,860,845,823,513,489,479,430,313,556,569,561,545,585,585,585,585,567,553,667,645,977,965,2166,2262,1692,1543,3284,2825]} 1. e4 {[%emt 0:00:25]} d6 {[%emt 0:00:08]} 2. d4 {[%emt 0:00:16]} Nf6 {[%emt 0:00:08]} 3. f3 {[%emt 0:00:08]} g6 {[%emt 0:01:38]} 4. c4 {[%emt 0:00:25]} Bg7 {[%emt 0:00:20]} 5. Nc3 {[%emt 0:00:05]} c6 {[%emt 0:00:38]} 6. Nge2 {[%emt 0:00:29]} a6 {[%emt 0:00:11] E80: King's Indian: Sämisch: Lines without early ...0-0.} 7. a4 {[%emt 0:09:34] Against b5} a5 {[%emt 0:00:09]} 8. Be3 {[%emt 0:00:17]} Na6 {[%emt 0:00:10] [#] White has an edge.} 9. g3 $146 {[%emt 0:01:52]} ({Predecessor:} 9. Qd2 e5 10. Rd1 Nd7 11. d5 Nb4 12. Nc1 O-O 13. dxc6 bxc6 14. c5 dxc5 15. Bxc5 {½-½ (54) Le,Q (2713)-Maze,S (2550) Caleta 2020}) 9... Nb4 {[%emt 0:00:45]} 10. Bg2 {[%emt 0:00:19]} h5 {[%emt 0:00:24][%cal Bh7h5,Bh5h4,Bh4h3][%mdl 32]} 11. O-O {[%emt 0:02:03]} h4 {[%emt 0:01:09]} 12. g4 {[%emt 0:03:00]} h3 {[%emt 0:00:09]} 13. Bh1 {[%emt 0:00:05]} Qc7 {[%emt 0:02:00]} 14. Qd2 {[%emt 0:01:12]} e5 {[%emt 0:09:58]} 15. Rad1 {[%emt 0:00:27]} O-O {[%emt 0:12:05]} 16. g5 {[%emt 0:05:15]} Nh5 {[%emt 0:06:36]} 17. Ng3 {[%emt 0:00:43]} Nxg3 (17... exd4 {looks sharper.} 18. Bxd4 Bxd4+ 19. Qxd4 Nxg3 20. hxg3 d5) 18. hxg3 d5 {[%emt 0:25:42]} 19. dxe5 {[%emt 0:01:33][%cal Rc4d5]} Bxe5 {[%emt 0:10:52]} ({Less strong is} 19... Qxe5 20. f4 Qe7 21. cxd5 cxd5 22. Bf3 $16 (22. Nxd5 Nxd5 23. Qxd5 Qe8 $16) (22. exd5 Re8 $16)) ({Black should try} 19... dxc4 $14 20. f4 Be6) 20. cxd5 $2 {[%emt 0:09:58]} (20. f4 $16 {[%cal Rc4d5] is forced if you want to stay better.} d4 21. Bxd4 Bxd4+ 22. Qxd4) 20... Bxg3 $2 {[%emt 0:00:33][%mdl 8192]} (20... Bxc3 $17 {stays on course.} 21. Qf2 Bg7) 21. d6 {[%emt 0:05:13]} (21. f4 $1 $16) 21... Qd7 $14 {[%emt 0:00:35] Hoping for ...h2+.} 22. Rf2 {[%emt 0:00:21]} f6 {[%emt 0:03:42] [#]} (22... f5 $11 {remains equal.}) 23. Bf4 $1 {[%emt 0:02:01]} Bxf2+ {[%emt 0:01:00]} 24. Qxf2 {[%emt 0:00:23]} Qe6 {[%emt 0:01:33]} 25. Qg3 {[%emt 0:01:25] White is more active.} (25. gxf6 $16 {And now e5 would win.} Qxf6 26. Be3) 25... Bd7 {[%emt 0:00:20]} (25... f5 $1 $11) 26. gxf6 $16 {[%emt 0:02:06]} Rxf6 {[%emt 0:00:07]} ({Reject} 26... Qxf6 27. Bg5 Qe6 28. e5 $11) 27. Bg5 {[%emt 0:00:19] Chess con chili.} Rf7 {[%emt 0:00:22]} (27... h2+ $14 28. Kxh2 (28. Qxh2 Rf7 $11) 28... Rf7) 28. Kh2 $1 {[%emt 0:05:08][%mdl 1024] White has strong compensation. White stays focused until the end.} Na2 {[%emt 0:04:18] [#]} (28... Re8 $16) 29. Ne2 $1 $18 {[%emt 0:00:52]} Qc4 {[%emt 0:01:10]} (29... Nb4 {might work better.}) 30. Rd2 {[%emt 0:00:18]} Nc1 {[%emt 0:06:19] [#]} (30... Qxa4 $2 31. Nf4 Rg7 32. Bf6 $18) 31. Nf4 {[%emt 0:02:34]} Rxf4 {[%emt 0:02:00]} (31... Qxa4 $2 32. Nxg6 Ne2 33. Qh4 $18) (31... Nb3 32. Rf2 Rxf4 33. Bxf4 Qe6) 32. Bxf4 {[%emt 0:00:16][%cal Bg5f4,Bf4e5,Be5c3][%mdl 32]} Qf7 {[%emt 0:00:09]} 33. Be5 {[%emt 0:00:40]} Nb3 {[%emt 0:03:21]} 34. Rd1 {[%emt 0:00:10]} Re8 {[%emt 0:00:22]} 35. Rg1 {[%emt 0:00:09]} Nd2 {[%emt 0:05:08]} (35... c5 $142 36. f4 Rxe5) 36. Bc3 {[%emt 0:00:48]} Nc4 {[%emt 0:00:24]} 37. b3 {[%emt 0:00:53]} Ne3 {[%emt 0:01:33]} 38. Qxg6+ {[%emt 0:03:47]} Qxg6 {[%emt 0:00:07]} 39. Rxg6+ {[%emt 0:00:06]} Kf7 {[%emt 0:02:17]} 40. Rg1 {[%emt 0:01:15]} Rg8 $2 {[%emt 0:00:33]} (40... Ng2 {was worth a try.} 41. Bxg2 (41. Bxa5 Re6 $18) 41... hxg2 42. Rxg2 b5 43. Rg7+ Ke6 44. Rg6+ Kf7) 41. Rxg8 {[%emt 0:02:31] White is clearly winning.} Kxg8 {[%emt 0:00:03][%mdl 4096] Endgame KBB-KBN} 42. Kg3 {[%emt 0:00:17]} Kf7 {[%emt 0:00:16]} 43. Bxa5 {[%emt 0:00:48]} Ke6 {[%emt 0:00:24]} 44. Bb6 {[%emt 0:00:24]} Nf1+ {[%emt 0:00:28]} 45. Kxh3 {[%emt 0:00:31]} Kxd6+ {[%emt 0:00:10]} 46. Kh4 {[%emt 0:00:04]} c5 {[%emt 0:02:28]} 47. f4 {[%emt 0:00:04] Threatens to win with e5+.} Nd2 {[%emt 0:00:06]} 48. e5+ {[%emt 0:00:24]} Ke6 {[%emt 0:00:10]} 49. Bxb7 {[%emt 0:00:10] a5 is the strong threat.} Nxb3 {[%emt 0:00:19]} 50. a5 {[%emt 0:00:07] Weighted Error Value: White=0.33/Black=0.61} 1-0

[Event "IX Famalicao Open 2022"]
[Site "Vila Nova de Famalicao"]
[Date "2022.07.26"]
[Round "4.4"]
[White "Krishna C R G"]
[Black "Borges, Guilherme Deola"]
[Result "1-0"]
[ECO "E62"]
[WhiteElo "2430"]
[BlackElo "2185"]
[Annotator "TA"]
[PlyCount "55"]
[EventDate "2022.07.25"]
[EventType "tourn"]
[EventCountry "POR"]
[SourceTitle "playchess.com"]
[Source "ChessBase"]
[SourceQuality "1"]
[TimeControl "5400+30"]

{[%evp 15,55,20,37,27,26,30,27,25,30,36,33,32,25,22,31,16,71,66,72,77,79,92,92,99,92,105,107,83,89,46,77,91,170,171,279,304,1147,1145,1120,1094,879,721]} 1. Nf3 Nf6 2. c4 g6 3. g3 Bg7 4. Bg2 O-O 5. O-O d6 6. d4 c6 7. Nc3 Bf5 8. Ne1 Be6 {8...e5 is more fashionable.} 9. d5 {E62: King's Indian: Fianchetto: 6...c6 and Panno Variation (6...Nc6) without ...a6.} cxd5 10. cxd5 Bd7 11. Be3 {White has an edge.} Ng4 12. Bd4 Bxd4 13. Qxd4 Qb6 {[#]} 14. Qd2 $146 ({Predecessor:} 14. Qxb6 axb6 15. Nd3 Na6 16. Rfc1 Rfc8 17. Bh3 Nf6 18. Bxd7 Nxd7 19. Rab1 f5 20. f3 {½-½ (42) Georgiev,K (2671)-Nyzhnyk,I (2585) Plovdiv 2012}) 14... Na6 15. Nf3 Rfc8 (15... Nc5 $11) 16. h3 $16 Nf6 17. e4 Nc5 18. Rfe1 Na4 19. Nxa4 Bxa4 {[#]} 20. b3 $1 Bb5 21. e5 dxe5 22. Rxe5 Rd8 23. Rae1 e6 {[#]} (23... Rd7 $16) 24. Ng5 $1 $18 {[%cal Bf3g5,Bg5f7,Bf7h6][%mdl 32]} ({Not} 24. a4 Bc6 $11) 24... Nxd5 (24... Rd7 $142) 25. Bxd5 exd5 {[#]} (25... Rxd5 26. Rxd5 exd5) 26. Nxf7 $1 {[%mdl 512] White wants to mate with Re7. White is clearly winning.} Rf8 27. Nh6+ Kh8 28. Rxd5 {Weighted Error Value: White=0.03 (flawless) /Black=0.22 (precise)} 1-0